fUST/lending_fUST_20251205
["ID","MTS","AMOUNT","RATE_DAILY","PERIOD"]
[396271668,1764909308344,500.0,0.00010855,2]
[396271669,1764909308389,500.0,0.00010855,2]
[396271670,1764909308425,197.53055867,0.00010855,2]
[396271671,1764909308466,242.96814858,0.00010855,2]
[396271672,1764909308490,257.03185142,0.00010855,2]
[396271673,1764909308549,500.0,0.00010855,2]
[396271674,1764909308594,500.0,0.00010855,2]
[396271675,1764909308642,500.0,0.00010855,2]
[396271676,1764909308696,500.0,0.00010855,2]
[396271677,1764909308733,500.0,0.00010855,2]
[396271678,1764909308772,500.0,0.00010855,2]
[396271679,1764909329010,188.62264946,0.0001304,5]
[396271700,1764909543114,197.62,1e-05,2]
[396271755,1764909544829,150.0,7.76e-05,2]
[396271766,1764909545216,150.0,8.465e-05,2]
[396271835,1764909704377,521.0,0.00011251,2]
[396271869,1764910232220,-245.0,0.0001164,2]
[396271870,1764910232230,-87.87499896,0.0001164,2]
[396271871,1764910232242,-62.12500104,0.0001164,2]
[396271872,1764910232251,-212.1900947,0.00012611,2]
[396271873,1764910232260,-258.9864125,0.00012769,2]
[396271874,1764910232270,-715.75558948,0.00013142,2]
[396271875,1764910232279,-272.16498585,0.00013532,2]
[396271876,1764910232305,-337.63966842,0.00013532,2]
[396271877,1764910232314,-427.79464183,0.00013598,2]
[396271878,1764910232324,-177.0,0.0001364,2]
[396271879,1764910232333,-300.0,0.00013694,2]
[396271880,1764910232342,-300.0,0.00013694,2]
[396271881,1764910232351,-300.0,0.00013694,2]
[396271882,1764910232360,-300.0,0.00013694,2]
[396271883,1764910232369,-1200.0,0.00013694,2]
[396271884,1764910232379,-6435.61464087,0.00013695,2]
[396271941,1764910238580,-2196.29875058,0.00013695,2]
[396271942,1764910238591,-861.4296,0.00013695,2]
[396271943,1764910238610,-40506.65700855,0.00013695,2]
[396271944,1764910238620,-500.0,0.00013695,2]
[396271945,1764910238629,-399.85451976,0.00013695,2]
[396271946,1764910238639,-500.0,0.00013695,2]
[396271947,1764910238649,-500.0,0.00013695,2]
[396271948,1764910238658,-339.9456992,0.00013695,2]
[396271949,1764910238668,-405.48956076,0.00013695,2]
[396271950,1764910238678,-500.0,0.00013695,2]
[396271951,1764910238688,-500.0,0.00013695,2]
[396271952,1764910238698,-500.0,0.00013695,2]
[396271953,1764910238708,-500.0,0.00013695,2]
[396271954,1764910238718,-500.0,0.00013695,2]
[396271955,1764910238728,-191.08208251,0.00013695,2]
[396271956,1764910238739,-500.0,0.00013695,2]
[396271957,1764910238749,-642.9263414,0.00013695,2]
[396271958,1764910238760,-500.0,0.00013695,2]
[396271959,1764910238770,-500.0,0.00013695,2]
[396271960,1764910238780,-394.43018114,0.00013695,2]
[396271961,1764910238790,-500.0,0.00013695,2]
[396271962,1764910238801,-500.0,0.00013695,2]
[396271963,1764910238811,-500.0,0.00013695,2]
[396271964,1764910238820,-500.0,0.00013695,2]
[396271965,1764910238831,-500.0,0.00013695,2]
[396271966,1764910238841,-500.0,0.00013695,2]
[396271967,1764910238851,-500.0,0.00013695,2]
[396271968,1764910238861,-500.0,0.00013695,2]
[396271969,1764910238871,-500.0,0.00013695,2]
[396271970,1764910238880,-500.0,0.00013695,2]
[396271971,1764910238890,-155.72384092,0.00013695,2]
[396271972,1764910238900,-259.84000191,0.00013695,2]
[396271973,1764910238910,-1250.37161994,0.00013695,2]
[396271974,1764910238920,-360.607,0.00013698,2]
[396271975,1764910238930,-500.0,0.00013698,2]
[396271976,1764910238939,-500.0,0.00013698,2]
[396271977,1764910238949,-546.24,0.00013698,2]
[396271978,1764910238959,-500.0,0.00013699,2]
[396271979,1764910238969,-445.94655658,0.00013705,5]
[396271980,1764910238979,-600.0,0.00013971,2]
[396271981,1764910238989,-500.0,0.00014016,5]
[396271982,1764910238998,-753.73610725,0.00014016,5]
[396271983,1764910239008,-913.26299625,0.00014247,2]
[396271984,1764910239020,-500.0,0.0001429,5]
[396271985,1764910239030,-383.62580365,0.00014684,2]
[396271986,1764910239039,-199.83356766,0.00014812,2]
[396271987,1764910239049,-206.19006684,0.00014916,2]
[396271988,1764910239058,-159.57,0.00015,2]
[396271989,1764910239068,-420.0,0.00015007,2]
[396271990,1764910239078,-2425.74323988,0.00015108,2]
[396271991,1764910239087,-720.0,0.00015368,2]
[396271992,1764910239097,-301.28969839,0.00015398,2]
[396271993,1764910239109,-126.50494342,0.00015398,2]
[396271994,1764910239119,-204.0,0.0001564,2]
[396271995,1764910239129,-399.1865873,0.00015802,2]
[396271996,1764910239139,-226.0,0.00016446,2]
[396271997,1764910239149,-504.69711353,0.000165,2]
[396271998,1764910239159,-2351.27927599,0.0001652,2]
[396271999,1764910239172,-1249.83558384,0.0001652,2]
[396272000,1764910239181,-250.0,0.000167,2]
[396272001,1764910239191,-383.62580365,0.00016745,2]
[396272002,1764910239201,-864.0,0.00016905,2]
[396272003,1764910239211,-427.79464181,0.00017199,2]
[396272004,1764910239221,-231.0,0.0001764,2]
[396272005,1764910239231,-4776.48647977,0.00017933,2]
[396272006,1764910239241,-177.9423698,0.00017934,2]
[396272007,1764910239251,-151.62838365,0.00017934,2]
[396272008,1764910239262,-500.0,0.00018077,2]
[396272009,1764910239272,-175.20062087,0.00018077,2]
[396272010,1764910239282,-500.0,0.00018077,2]
[396272011,1764910239292,-500.0,0.00018077,2]
[396272012,1764910239302,-500.0,0.00018077,2]
[396272013,1764910239312,-362.32545893,0.00018077,2]
[396272014,1764910239322,-1000.0,0.00018595,10]
[396272015,1764910239332,-383.62580365,0.00018805,2]
[396272016,1764910239342,-427.79464181,0.00018999,2]
[396272017,1764910239351,-5951.85809972,0.00019345,2]
[396272018,1764910239360,-258.0,0.0001964,2]
[396272019,1764910239370,-150.0,0.0002,3]
[396272020,1764910239380,-1003.0,0.0002,6]
[396272021,1764910239389,-514.077749,0.00020187,2]
[396272022,1764910239399,-1000.0,0.00020455,10]
[396272023,1764910239408,-244.0,0.00020455,10]
[396272024,1764910239418,-7127.22971966,0.00020758,2]
[396272025,1764910239428,-151.355168,0.00020777,2]
[396272026,1764910239437,-151.0,0.00020787,2]
[396272027,1764910239446,-151.0,0.00020787,2]
[396272028,1764910239455,-151.0,0.00020787,2]
[396272029,1764910239465,-427.79464181,0.000208,2]
[396272030,1764910239475,-383.62580365,0.00020866,2]
[396272031,1764910239484,-2635.89918506,0.000216,3]
[396272032,1764910239496,-1984.19081494,0.000216,3]
[396272033,1764910239505,-285.0,0.0002164,2]
[396272034,1764910239515,-386.4349735,0.00021699,2]
[396272035,1764910239525,-192.2832849,0.00021699,2]
[396272036,1764910239534,-192.2832849,0.00021699,2]
[396272037,1764910239543,-192.2832849,0.00021699,2]
[396272038,1764910239553,-1540.02,0.000217,3]
[396272039,1764910239562,-1004.64660252,0.00021799,2]
[396272040,1764910239571,-691.03201,0.0002185,10]
[396272041,1764910239580,-1692.6032,0.0002185,15]
[396272042,1764910239590,-251.59,0.0002189,3]
[396272043,1764910239599,-754.79,0.0002189,3]
[396272044,1764910239608,-151.0,0.0002189,2]
[396272045,1764910239618,-151.0,0.0002189,2]
[396272046,1764910239627,-151.0,0.0002189,2]
[396272047,1764910239712,-151.0,0.0002189,2]
[396272048,1764910239722,-151.0,0.0002189,2]
[396272049,1764910239731,-7343.29679107,0.000219,2]
[396272196,1764911190123,-300.0,0.00013694,2]
[396272197,1764911190146,-109.5515508,0.00013695,2]
[396272270,1764911440722,-150.0,0.00013695,2]
[396272271,1764911440732,-500.0,0.00013695,2]
[396272272,1764911440741,-261.075,0.00013695,2]
[396272387,1764911446570,-2924.4149658,0.00013558,2]
[396272422,1764911446910,-238.925,0.00013695,2]
[396272423,1764911446944,-500.0,0.00013695,2]
[396272424,1764911446954,-500.0,0.00013695,2]
[396272425,1764911446964,-500.0,0.00013695,2]
[396272426,1764911446974,-496.23232323,0.00013695,2]
[396272427,1764911446983,-263.0,0.00013695,2]
[396272428,1764911446993,-1288.36006106,0.00013698,2]
[396272429,1764911447004,-462.669974,0.00013699,2]
[396272430,1764911447014,-154.93668679,0.00015692,2]
[396272431,1764911447024,-500.0,0.00015692,2]
[396272432,1764911447034,-239.52487121,0.00015692,2]
[396272433,1764911447044,-500.0,0.00015692,2]
[396272434,1764911447055,-500.0,0.00015692,2]
[396272435,1764911447065,-500.0,0.00015692,2]
[396272436,1764911447075,-500.0,0.00015692,2]
[396272437,1764911447085,-518.3027364,0.00015692,2]
[396272438,1764911447094,-251.09333355,0.00015692,2]
[396272439,1764911447103,-1155.21924379,0.00015693,2]
[396272441,1764911447112,-50000.0,0.00015693,2]
[396272443,1764911447121,-177.0,0.00015695,2]
[396272445,1764911447131,-192.67562853,0.00015749,2]
[396272447,1764911447141,-399.1865873,0.00015803,2]
[396272449,1764911447150,-2235.43848759,0.00017037,2]
[396272451,1764911447160,-204.0,0.00017695,2]
[396272453,1764911447170,-500.0,0.00018024,2]
[396272454,1764911447179,-500.0,0.00018024,2]
[396272455,1764911447189,-153.62782125,0.00018024,2]
[396272456,1764911447198,-500.0,0.00018024,2]
[396272457,1764911447208,-20660.90702054,0.00018025,2]
[396272487,1764911447688,-1600.18163883,0.00018025,2]
[396272651,1764912519064,2910.58531077,0.0001,2]
[396272686,1764912632589,-1318.93594187,0.000125,2]
[396272688,1764912632599,-252.0,0.000125,2]
[396272690,1764912632609,-150.0,0.0001375,2]
[396272692,1764912632618,-503.43698232,0.00015,2]
[396272694,1764912632628,-177.0,0.0001575,2]
[396272696,1764912632637,-399.1865873,0.00017636,2]
[396272698,1764912632646,-3057.33686619,0.00017674,2]
[396272700,1764912632656,-204.0,0.0001775,2]
[396272702,1764912632665,-1432.43645014,0.00017882,2]
[396272704,1764912632674,-595.58596929,0.00017921,2]
[396272707,1764912632684,-500.0,0.00017921,2]
[396272711,1764912632693,-500.0,0.00017921,2]
[396272715,1764912632703,-211.25694489,0.00017921,2]
[396272718,1764912632712,-500.0,0.00017921,2]
[396272721,1764912632721,-474.63669803,0.00017921,2]
[396272724,1764912632731,-468.41637111,0.00017921,2]
[396272727,1764912632739,-500.0,0.00017921,2]
[396272730,1764912632748,-500.0,0.00017921,2]
[396272733,1764912632757,-500.0,0.00017921,2]
[396272736,1764912632766,-500.0,0.00017921,2]
[396272739,1764912632776,-500.0,0.00017921,2]
[396272742,1764912632785,-1200.0,0.00017921,2]
[396272745,1764912632794,-50000.0,0.00017922,2]
[396272747,1764912632804,-300.0,0.00017922,2]
[396272749,1764912632814,-300.0,0.00017922,2]
[396272751,1764912632824,-1108.26189504,0.00017923,2]
[396272753,1764912632833,-500.0,0.00017924,2]
[396272755,1764912632843,-157.53947488,0.00017924,2]
[396272757,1764912632852,-500.0,0.00017924,2]
[396272759,1764912632862,-21192.14676695,0.00017925,2]
[396272761,1764912632874,-334.45923056,0.00017925,2]
[396272763,1764912632885,-815.56340147,0.00017925,2]
[396272765,1764912632896,-30971.70001515,0.00017925,2]
[396272767,1764912632906,-1511.56,0.00018015,3]
[396272769,1764912632915,-288.486,0.00018021,2]
[396272771,1764912632925,-1432.43645014,0.00018181,2]
[396272773,1764912632934,-1432.43645014,0.0001848,2]
[396272775,1764912632944,-445.9561331,0.00018525,2]
[396272777,1764912632954,-1432.43645014,0.00018779,2]
[396272779,1764912632963,-4620.06,0.00018878,3]
[396272781,1764912632973,-1432.43645014,0.00019078,2]
[396272783,1764912632982,-1112.49141136,0.00019078,2]
[396272785,1764912632991,-503.18,0.00019168,3]
[396272787,1764912633000,-1587.22,0.00019178,2]
[396272789,1764912633010,-440.53107577,0.00019178,2]
[396272791,1764912633019,-1433.32,0.00019178,2]
[396272793,1764912633028,-203.36701009,0.00019178,2]
[396272795,1764912633038,-751.6,0.00019178,2]
[396272797,1764912633047,-755.7,0.00019178,2]
[396272799,1764912633056,-500.0,0.00019178,2]
[396272800,1764912633066,-2471.24,0.00019178,2]
[396272801,1764912633075,-2228.0,0.00019178,2]
[396272802,1764912633084,-500.0,0.00019178,2]
[396272803,1764912633094,-500.0,0.00019178,2]
[396272804,1764912633104,-500.0,0.00019178,2]
[396272805,1764912633113,-500.0,0.00019178,2]
[396272806,1764912633122,-1324.33,0.00019178,2]
[396272807,1764912633131,-500.0,0.00019178,2]
[396272809,1764912633141,-500.0,0.00019178,2]
[396272811,1764912633150,-500.0,0.00019178,2]
[396272813,1764912633159,-525.68420182,0.00019178,2]
[396272815,1764912633169,-500.0,0.00019178,2]
[396272817,1764912633178,-500.0,0.00019178,2]
[396272818,1764912633188,-500.0,0.00019178,2]
[396272819,1764912633198,-500.0,0.00019178,2]
[396272820,1764912633207,-500.0,0.00019178,2]
[396272821,1764912633217,-500.0,0.00019178,2]
[396272822,1764912633226,-686.71,0.00019178,2]
[396272823,1764912633235,-1318.49,0.00019178,2]
[396272824,1764912633244,-500.0,0.00019178,2]
[396272825,1764912633253,-543.61,0.00019178,2]
[396272826,1764912633263,-1924.89,0.00019178,2]
[396272827,1764912633272,-500.0,0.00019178,2]
[396272828,1764912633281,-500.0,0.00019178,2]
[396272829,1764912633290,-500.0,0.00019178,2]
[396272830,1764912633299,-500.0,0.00019178,2]
[396272831,1764912633310,-500.0,0.00019178,2]
[396272832,1764912633318,-500.0,0.00019178,2]
[396272833,1764912633327,-1038.99,0.00019178,2]
[396272834,1764912633336,-500.0,0.00019178,2]
[396272835,1764912633346,-500.0,0.00019178,2]
[396272836,1764912633355,-500.0,0.00019178,2]
[396272837,1764912633365,-500.0,0.00019178,2]
[396272838,1764912633375,-500.0,0.00019178,2]
[396272839,1764912633384,-862.68,0.00019178,2]
[396272840,1764912633395,-500.0,0.00019178,2]
[396272841,1764912633406,-500.0,0.00019178,2]
[396272842,1764912633416,-500.0,0.00019178,2]
[396272843,1764912633425,-685.89,0.00019178,2]
[396272844,1764912633435,-501.49,0.00019178,2]
[396272845,1764912633447,-500.0,0.00019178,2]
[396272846,1764912633457,-500.0,0.00019178,2]
[396272847,1764912633466,-500.0,0.00019178,2]
[396272848,1764912633477,-1397.63,0.00019178,2]
[396272849,1764912633487,-665.96,0.00019178,2]
[396272850,1764912633497,-151.0,0.00019178,2]
[396272851,1764912633507,-161.601718,0.00019178,2]
[396272852,1764912633517,-500.0,0.00019178,2]
[396272853,1764912633526,-500.0,0.00019178,2]
[396272854,1764912633535,-1358.46,0.00019178,2]
[396272855,1764912633545,-1378.38,0.00019178,2]
[396272856,1764912633555,-2721.05,0.00019178,2]
[396272857,1764912633565,-500.0,0.00019178,2]
[396272858,1764912633575,-500.0,0.00019178,2]
[396272859,1764912633584,-151.0,0.00019178,2]
[396272860,1764912633594,-151.0,0.00019178,2]
[396272861,1764912633603,-932.82,0.00019178,2]
[396272862,1764912633613,-151.0,0.00019178,2]
[396272863,1764912633622,-151.0,0.00019178,2]
[396272864,1764912633633,-669.11,0.00019178,2]
[396272865,1764912633642,-187.409336,0.00019178,2]
[396272866,1764912633651,-500.0,0.00019178,2]
[396272867,1764912633661,-1045.81,0.00019178,2]
[396272868,1764912633670,-500.0,0.00019178,2]
[396272869,1764912633680,-261.76938735,0.00019178,2]
[396272870,1764912633689,-595.97,0.00019178,2]
[396272871,1764912633699,-500.0,0.00019178,2]
[396272872,1764912633708,-500.0,0.00019178,2]
[396272873,1764912633718,-500.0,0.00019178,2]
[396272874,1764912633727,-873.48,0.00019178,2]
[396272875,1764912633737,-351.92945375,0.00019178,2]
[396272876,1764912633746,-500.0,0.00019178,2]
[396272877,1764912633756,-1286.05,0.00019178,2]
[396272878,1764912633765,-500.0,0.00019178,2]
[396272879,1764912633775,-500.0,0.00019178,2]
[396272880,1764912633785,-537.85,0.00019178,2]
[396272881,1764912633794,-500.0,0.00019178,2]
[396272882,1764912633804,-600.42,0.00019178,2]
[396272883,1764912633813,-500.0,0.00019178,2]
[396272884,1764912633822,-500.0,0.00019178,2]
[396272885,1764912633832,-500.0,0.00019178,2]
[396272886,1764912633841,-500.0,0.00019178,2]
[396272887,1764912633851,-500.0,0.00019178,2]
[396272888,1764912633861,-500.0,0.00019178,2]
[396272889,1764912633871,-1000.25,0.00019178,2]
[396272890,1764912633880,-500.0,0.00019178,2]
[396272891,1764912633889,-500.0,0.00019178,2]
[396272892,1764912633899,-500.0,0.00019178,2]
[396272893,1764912633908,-500.0,0.00019178,2]
[396272894,1764912633918,-2377.81,0.00019178,2]
[396272895,1764912633927,-500.0,0.00019178,2]
[396272896,1764912633936,-500.0,0.00019178,2]
[396272897,1764912633945,-2377.26,0.00019178,2]
[396272898,1764912633955,-1754.26,0.00019178,2]
[396272899,1764912633964,-538.09,0.00019178,2]
[396272900,1764912633973,-500.0,0.00019178,2]
[396272901,1764912633983,-500.0,0.00019178,2]
[396272902,1764912633992,-1152.14,0.00019178,2]
[396272903,1764912634001,-1111.31,0.00019178,2]
[396272904,1764912634011,-504.0769057,0.00019178,2]
[396272905,1764912634020,-500.0,0.00019178,2]
[396272906,1764912634029,-500.0,0.00019178,2]
[396272907,1764912634039,-938.66,0.00019178,2]
[396272908,1764912634048,-757.95,0.00019178,2]
[396272909,1764912634057,-1063.86,0.00019178,2]
[396272910,1764912634067,-151.0,0.00019178,2]
[396272911,1764912634076,-151.0,0.00019178,2]
[396272912,1764912634085,-1316.56,0.00019178,2]
[396272913,1764912634095,-198.356332,0.00019178,2]
[396272914,1764912634105,-500.0,0.00019178,2]
[396272915,1764912634114,-500.0,0.00019178,2]
[396272916,1764912634123,-500.0,0.00019178,2]
[396272917,1764912634133,-500.0,0.00019178,2]
[396272918,1764912634142,-500.0,0.00019178,2]
[396272919,1764912634151,-959.75,0.00019178,2]
[396272920,1764912634160,-500.0,0.00019178,2]
[396272921,1764912634388,-1810.94,0.00019178,2]
[396272922,1764912634407,-500.0,0.00019178,2]
[396272923,1764912634417,-2568.63,0.00019178,2]
[396272924,1764912634426,-561.14618299,0.00019178,2]
[396272925,1764912634436,-500.0,0.00019178,2]
[396272926,1764912634446,-500.0,0.00019178,2]
[396272927,1764912634456,-500.0,0.00019178,2]
[396272928,1764912634465,-500.0,0.00019178,2]
[396272929,1764912634477,-2315.36,0.00019178,2]
[396272930,1764912634487,-500.0,0.00019178,2]
[396272931,1764912634497,-500.0,0.00019178,2]
[396272932,1764912634506,-500.0,0.00019178,2]
[396272933,1764912634516,-151.0,0.00019178,2]
[396272934,1764912634525,-151.0,0.00019178,2]
[396272935,1764912634535,-838.62,0.00019178,2]
[396272936,1764912634544,-151.0,0.00019178,2]
[396272937,1764912634554,-151.0,0.00019178,2]
[396272938,1764912634564,-151.0,0.00019178,2]
[396272939,1764912634573,-151.0,0.00019178,2]
[396272940,1764912634582,-151.0,0.00019178,2]
[396272941,1764912634592,-151.0,0.00019178,2]
[396272942,1764912634601,-151.0,0.00019178,2]
[396272943,1764912634610,-151.0,0.00019178,2]
[396272944,1764912634619,-151.0,0.00019178,2]
[396272945,1764912634628,-151.0,0.00019178,2]
[396272946,1764912634638,-151.0,0.00019178,2]
[396272947,1764912634647,-151.0,0.00019178,2]
[396272948,1764912634656,-151.0,0.00019178,2]
[396272949,1764912634666,-151.0,0.00019178,2]
[396272950,1764912634675,-151.0,0.00019178,2]
[396272951,1764912634684,-151.0,0.00019178,2]
[396272952,1764912634693,-151.0,0.00019178,2]
[396272953,1764912634702,-151.0,0.00019178,2]
[396272954,1764912634711,-151.0,0.00019178,2]
[396272955,1764912634720,-151.0,0.00019178,2]
[396272956,1764912634730,-167.358572,0.00019178,2]
[396272957,1764912634739,-455.09095745,0.00019178,2]
[396272974,1764912638538,-308.39904255,0.00019178,2]
[396272976,1764912638547,-184.351793,0.00019178,2]
[396272978,1764912638557,-1582.25,0.00019178,2]
[396272980,1764912638566,-500.0,0.00019178,2]
[396272981,1764912638576,-1001.82,0.00019178,2]
[396272982,1764912638586,-500.0,0.00019178,2]
[396272983,1764912638595,-2076.78,0.00019178,2]
[396272984,1764912638604,-1292.89382126,0.00019178,2]
[396272986,1764912638616,-1166.49617874,0.00019178,2]
[396272987,1764912638626,-500.0,0.00019178,2]
[396272988,1764912638635,-1443.14,0.00019178,2]
[396272989,1764912638645,-151.0,0.00019178,2]
[396272990,1764912638655,-151.0,0.00019178,2]
[396272991,1764912638664,-151.0,0.00019178,2]
[396272992,1764912638674,-152.732202,0.00019178,2]
[396272993,1764912638683,-151.0,0.00019178,2]
[396272994,1764912638693,-152.308206,0.00019178,2]
[396272995,1764912638703,-276.32800728,0.00019178,2]
[396272996,1764912638719,-484.73199272,0.00019178,2]
[396272997,1764912638729,-500.0,0.00019178,2]
[396272998,1764912638739,-984.24,0.00019178,2]
[396272999,1764912638748,-94.76606383,0.00019178,2]
[396273000,1764912638768,-1117.63657693,0.00019178,2]
[396273001,1764912638779,-1636.59532426,0.00019178,2]
[396273002,1764912638791,-463.0,0.00019178,2]
[396273003,1764912638804,-1347.76203498,0.00019178,2]
[396273004,1764912638814,-545.83,0.00019178,2]
[396273005,1764912638824,-538.91,0.00019178,2]
[396273006,1764912638833,-835.3,0.00019178,2]
[396273007,1764912638843,-500.0,0.00019178,2]
[396273008,1764912638853,-908.93,0.00019178,2]
[396273009,1764912638863,-500.0,0.00019178,2]
[396273010,1764912638873,-500.0,0.00019178,2]
[396273011,1764912638883,-151.0,0.00019178,2]
[396273012,1764912638892,-151.0,0.00019178,2]
[396273013,1764912638902,-500.0,0.00019178,2]
[396273014,1764912638910,-151.0,0.00019178,2]
[396273015,1764912638916,-500.0,0.00019178,2]
[396273016,1764912638923,-151.0,0.00019178,2]
[396273017,1764912638932,-151.0,0.00019178,2]
[396273018,1764912638942,-151.0,0.00019178,2]
[396273019,1764912638951,-151.0,0.00019178,2]
[396273020,1764912638961,-151.0,0.00019178,2]
[396273021,1764912638971,-269.0704,0.00019178,2]
[396273022,1764912638981,-1138.8,0.00019178,2]
[396273023,1764912638990,-500.0,0.00019178,2]
[396273024,1764912639000,-509.72,0.00019178,2]
[396273025,1764912639009,-500.0,0.00019178,2]
[396273026,1764912639019,-718.34,0.00019178,2]
[396273027,1764912639280,-4811.65,0.00019178,2]
[396273028,1764912639290,-348.49273472,0.00019178,2]
[396273033,1764912640724,-276.58054356,0.00019178,2]
[396273034,1764912640736,-500.0,0.00019178,2]
[396273035,1764912640746,-500.0,0.00019178,2]
[396273036,1764912640757,-563.12,0.00019178,2]
[396273037,1764912640767,-566.04,0.00019178,2]
[396273038,1764912640777,-2200.81783438,0.00019178,2]
[396273039,1764912640800,-2502.35060588,0.00019178,2]
[396273047,1764912646723,-64.18155974,0.00019178,2]
[396273048,1764912646735,-1011.43484026,0.00019178,2]
[396273049,1764912646748,-1075.6164,0.00019178,2]
[396273198,1764913831814,-380.69664756,0.00013292,2]
[396273199,1764913831824,-260.0,0.00013426,2]
[396273201,1764913831833,-150.0,0.00013528,2]
[396273203,1764913831843,-439.536475,0.00013699,2]
[396273204,1764913831852,-104.98315043,0.0001544,7]
[396273207,1764913831880,-348.87007133,0.0001544,7]
[396273209,1764913831891,-177.0,0.00015528,2]
[396273210,1764913831900,-172.74420855,0.00016486,2]
[396273211,1764913831910,-1200.0,0.00016583,2]
[396273212,1764913831919,-50000.0,0.00016584,2]
[396273213,1764913831929,-500.0,0.00016584,2]
[396273214,1764913831938,-500.0,0.00016584,2]
[396273215,1764913831949,-382.50126499,0.00016584,2]
[396273216,1764913831958,-500.0,0.00016584,2]
[396273217,1764913831968,-500.0,0.00016584,2]
[396273218,1764913831977,-500.0,0.00016584,2]
[396273219,1764913831987,-500.0,0.00016584,2]
[396273220,1764913831996,-335.01800278,0.00016584,2]
[396273221,1764913832005,-1200.0,0.00016584,2]
[396273222,1764913832015,-500.0,0.00016585,2]
[396273223,1764913832024,-310.27763241,0.00016585,2]
[396273224,1764913832034,-53575.2615195,0.00016586,2]
[396273225,1764913832045,-505.2236067,0.00016924,2]
[396273226,1764913832055,-172.74420852,0.00017134,2]
[396273227,1764913832066,-204.0,0.00017528,2]
[396273228,1764913832076,-399.1865873,0.00017534,2]
[396273229,1764913832087,-172.74420852,0.00017782,2]
[396273230,1764913832099,-539.35581176,0.00017825,2]
[396273231,1764913832111,-262.416,0.00017922,2]
[396273232,1764913832120,-216.28196241,0.00017924,2]
[396273233,1764913832130,-151.0,0.00017925,2]
[396273234,1764913832139,-191.903455,0.00017925,2]
[396273235,1764913832149,-176.51504589,0.00017925,2]
[396273236,1764913832161,-15.38840911,0.00017925,2]
[396273237,1764913832170,-191.903455,0.00017925,2]
[396273238,1764913832180,-191.903455,0.00017925,2]
[396273239,1764913832189,-500.0,0.00018023,2]
[396273240,1764913832198,-500.0,0.00018023,2]
[396273241,1764913832208,-1069.92680521,0.00018023,2]
[396273242,1764913832217,-500.0,0.00018024,2]
[396273243,1764913832227,-500.0,0.00018024,2]
[396273244,1764913832237,-500.0,0.00018024,2]
[396273245,1764913832246,-500.0,0.00018024,2]
[396273246,1764913832255,-500.0,0.00018024,2]
[396273247,1764913832264,-500.0,0.00018024,2]
[396273248,1764913832273,-500.0,0.00018024,2]
[396273249,1764913832283,-500.0,0.00018024,2]
[396273250,1764913832294,-172.74420852,0.0001843,2]
[396273251,1764913832303,-193.06097979,0.00018633,2]
[396273252,1764913832312,-741.66094089,0.00018638,2]
[396273253,1764913832322,-156.57217215,0.00018796,2]
[396273254,1764913832331,-512.05756733,0.00018904,2]
[396273255,1764913832341,-301.8864018,0.00018904,2]
[396273256,1764913832351,-301.8864018,0.00018904,2]
[396273257,1764913832361,-301.8864018,0.00018904,2]
[396273258,1764913832371,-301.8864018,0.00018904,2]
[396273259,1764913832381,-41890.75,0.00019015,4]
[396273260,1764913832392,-7059.67,0.00019015,4]